bitfinex-derivatives/quotes_ETHF0:USTF0_20250923
["timestamp","ask_amount","ask_price","bid_price","bid_amount"]
[1758652188668,3.7882,4161.4,4161.0,0.5623]
[1758652188865,3.2078,4161.4,4161.2,0.43238]
[1758652189074,3.2078,4161.4,4161.3,1.18027]
[1758652189376,3.64016,4161.4,4161.3,1.18027]
[1758652189777,3.84566,4161.4,4161.3,0.7479]
[1758652189975,4.39146,4161.4,4161.3,0.7479]
[1758652190173,4.39146,4161.4,4161.3,0.221]
[1758652191478,0.7658,4161.0,4160.9,3.88721]
[1758652191778,0.7513,4161.0,4160.9,4.31681]
[1758652192078,0.7513,4161.0,4160.9,4.63511]
[1758652192276,1.1837,4161.0,4160.9,4.2027]
[1758652192476,1.3065,4161.0,4160.9,3.2078]
[1758652192982,1.3065,4161.0,4160.9,3.4288]
[1758652193282,1.1837,4161.0,4160.9,3.9557]
[1758652193477,1.3174,4161.0,4160.9,3.9557]
[1758652193878,1.3174,4161.0,4160.9,4.38811]
[1758652194076,1.3174,4161.0,4160.9,3.9557]
[1758652194477,1.3174,4161.0,4160.9,0.221]
[1758652194878,1.3174,4161.0,4160.9,0.5374]
[1758652195978,1.3174,4161.0,4160.9,0.221]
[1758652196583,1.3174,4161.0,4160.9,0.5374]
[1758652196978,1.1837,4161.0,4160.9,1.17801]
[1758652197182,1.1837,4161.0,4160.9,0.7456]
[1758652197573,1.1837,4161.0,4160.9,1.17801]
[1758652197780,0.6379,4161.0,4160.9,1.17801]
[1758652200088,1.3031,4161.0,4160.9,0.221]
[1758652200284,1.18163,4160.7,4160.5,1.29374344]
[1758652200483,1.18163,4160.7,4160.0,1.29374344]
[1758652200484,0.43248,4160.2,4160.0,1.29374344]
[1758652200685,0.5662,4160.0,4159.9,1.29374344]
[1758652200988,0.247,4160.4,4159.9,2.46505344]
[1758652200989,0.43249,4160.2,4159.9,2.46505344]
[1758652201178,1.18166,4160.4,4160.3,0.7388]
[1758652201490,1.42866,4160.4,4160.3,0.7388]
[1758652201683,1.42866,4160.4,4160.3,0.5246]
[1758652201997,0.86101,4159.9,4159.8,1.29374344]
[1758652202182,0.1337,4160.0,4159.9,1.17131]
[1758652202183,0.2177,4160.0,4159.9,1.17131]
[1758652202787,1.3154,4160.0,4159.9,0.4224]
[1758652203393,1.3154,4160.0,4159.9,0.7388]
[1758652204089,0.43252,4159.8,4159.7,1.29374344]
[1758652204288,1.18173,4159.7,4159.6,3.2078]
[1758652206894,0.86107,4159.4,4159.3,0.2142]
[1758652207191,1.18177,4159.4,4159.3,0.2142]
[1758652207389,0.1337,4159.5,4159.0,3.2078]
[1758652207390,0.7492,4159.1,4159.0,3.2078]
[1758652207693,0.43264,4158.7,4158.6,0.2142]
[1758652207886,0.86114,4158.7,4158.6,0.2142]
[1758652208082,0.7492,4158.6,4158.5,3.2078]
[1758652208284,0.7492,4158.1,4158.0,0.74744009]
[1758652208492,0.67963,4158.8,4158.7,0.2082]
[1758652208794,0.89733,4158.8,4158.7,0.7388]
[1758652208995,0.2177,4158.8,4158.7,0.7388]
[1758652209699,3.2078,4159.2,4159.1,0.7388]
[1758652209892,3.4255,4159.2,4159.1,0.7388]
[1758652210197,0.7492,4159.2,4159.1,0.7388]
[1758652210394,4.28916,4159.7,4159.2,0.3164]
[1758652210395,0.3207,4159.4,4159.2,0.3164]
[1758652210693,1.08123,4160.2,4159.2,0.3164]
[1758652210694,1.18169,4160.2,4160.1,0.7388]
[1758652211495,3.2078,4160.4,4160.3,0.4449]
[1758652211794,3.6425,4160.4,4160.3,0.7733]
[1758652211993,3.6425,4160.4,4160.0,0.4449]
[1758652211994,0.4347,4160.1,4160.0,0.4449]
[1758652212296,3.2078,4160.4,4160.3,0.7733]
[1758652212497,3.2078,4160.4,4160.0,0.56399]
[1758652212498,0.43249,4160.1,4160.0,0.2212]
[1758652212692,0.86719,4160.1,4160.0,0.2212]
[1758652212888,0.64574,4159.7,4159.6,0.5496]
[1758652213197,0.6457,4160.0,4159.9,0.7733]
[1758652213489,0.5358,4160.0,4159.9,0.7733]
[1758652214094,0.7573,4160.0,4159.9,0.7733]
[1758652214286,0.2132,4160.0,4159.9,0.7733]
[1758652214490,0.64567,4160.3,4160.2,0.7733]
[1758652214690,0.86724,4159.7,4159.6,0.4449]
[1758652214908,0.4347,4159.7,4159.6,0.4449]
[1758652215091,0.4347,4159.7,4159.6,0.2212]
[1758652215288,1.18984,4159.6,4159.5,0.7733]
[1758652215595,1.18984,4159.6,4159.5,0.4449]
[1758652215998,0.64577,4159.3,4159.2,0.5496]
[1758652216206,1.18987,4159.3,4159.2,0.2212]
[1758652216500,0.7573,4159.3,4159.2,0.7733]
[1758652216705,0.96833,4159.7,4159.6,0.4449]
[1758652216999,0.2132,4159.7,4159.6,0.7733]
[1758652217188,3.421,4160.5,4160.4,0.7733]
[1758652217391,3.9651,4160.5,4160.4,0.2212]
[1758652217595,3.9651,4160.5,4159.5,1.42524344]
[1758652217596,0.3226,4159.9,4159.7,0.247]
[1758652217897,0.1259,4160.0,4159.7,1.0203]
[1758652217898,0.7573,4159.8,4159.7,1.0203]
[1758652218101,0.43242,4160.8,4160.1,0.3284]
[1758652218302,3.2078,4161.0,4160.8,0.3284]
[1758652218495,0.75501,4160.9,4160.8,0.3284]
[1758652218693,0.3226,4160.9,4160.8,0.3284]
[1758652219403,0.4324,4161.0,4160.5,0.67944]
[1758652219404,0.43244,4160.7,4160.5,0.67944]
[1758652219604,0.3226,4160.6,4160.5,0.67944]
[1758652219808,0.3226,4160.6,4160.5,1.00784]
[1758652220097,0.3226,4160.7,4159.8,1.29374344]
[1758652220397,0.3226,4160.2,4159.8,0.76092]
[1758652220594,0.3226,4159.9,4159.6,0.3284]
[1758652220800,0.3729,4160.0,4159.5,3.2078]
[1758652220996,0.3226,4159.8,4159.5,3.2078]
[1758652221188,0.3226,4159.6,4159.5,3.2078]
[1758652222603,0.43254,4159.7,4159.1,0.43259]
[1758652222805,0.43255,4159.6,4159.1,0.76099]
[1758652222998,0.43255,4159.6,4159.0,0.1315]
[1758652222999,0.43255,4159.6,4159.0,0.8925]
[1758652223305,0.75513,4159.7,4159.1,0.43259]
[1758652223500,0.43255,4159.5,4159.0,0.4599]
[1758652223707,0.3095,4159.7,4159.3,0.43257]
[1758652223911,0.74203,4159.7,4159.4,0.3037]
[1758652224101,0.43255,4159.6,4159.4,0.3037]
[1758652224299,0.3095,4159.2,4158.9,3.2078]
[1758652224501,0.3095,4159.4,4158.9,3.64041]
[1758652224703,0.43257,4159.4,4159.0,0.3037]
[1758652224904,0.3095,4159.2,4158.9,3.2078]
[1758652225106,0.1221,4159.5,4158.9,3.2078]
[1758652225107,0.3095,4159.0,4158.9,3.2078]
[1758652225303,0.3095,4159.0,4158.9,3.5115]
[1758652225797,0.3095,4159.0,4158.9,3.2078]
[1758652226403,0.5336,4158.6,4158.5,0.5268]
[1758652226596,0.7492,4158.6,4158.5,0.5268]
[1758652227002,0.7492,4158.6,4158.5,0.7413]
[1758652227396,0.7492,4158.4,4158.3,3.4548]
[1758652228110,0.7492,4158.4,4158.3,4.1961]
[1758652228510,0.2241,4158.4,4158.3,4.1961]
[1758652228711,0.1221,4159.0,4158.4,0.3037]
[1758652228712,0.4316,4159.0,4158.4,0.3037]
[1758652228907,1.18183,4158.8,4158.7,0.2231]
[1758652229807,1.18183,4158.8,4158.4,0.3037]
[1758652229808,4.08009,4159.2,4159.1,0.2231]
[1758652230011,4.08009,4159.2,4159.1,0.7413]
[1758652230414,3.957,4159.2,4159.1,0.7413]
[1758652230606,4.38958,4159.2,4159.1,0.7413]
[1758652230917,4.38958,4159.2,4159.1,0.2231]
[1758652231211,0.4397,4158.9,4158.8,0.2231]
[1758652231414,0.7492,4158.9,4158.8,0.2231]
[1758652231604,0.7492,4158.9,4158.8,0.5268]
[1758652232114,1.18182,4158.9,4158.8,0.5268]
[1758652232917,0.7492,4158.9,4158.8,0.2231]
[1758652233115,0.7492,4158.9,4158.3,3.4548]
[1758652233302,1.18188,4158.3,4158.2,1.29374344]
[1758652233505,0.7492,4158.1,4158.0,0.53544009]
[1758652233716,0.43267,4158.4,4158.0,0.88004009]
[1758652233910,0.96627,4158.4,4158.3,0.7413]
[1758652234108,0.7492,4158.4,4158.0,0.00864009]
[1758652234316,1.18189,4158.2,4158.0,0.00864009]
[1758652234614,4.38969,4158.2,4158.0,0.00864009]
[1758652236613,0.4397,4157.3,4157.2,3.2078]
[1758652236810,0.7492,4157.3,4157.2,3.2078]
[1758652237013,0.7492,4157.3,4157.2,3.9491]
[1758652237714,0.7492,4157.3,4157.2,3.2078]
[1758652238113,0.43281,4157.1,4156.7,3.2078]
[1758652238317,0.7492,4156.8,4156.7,3.4309]
[1758652238823,0.7492,4156.8,4156.7,3.7346]
[1758652239213,0.2241,4156.8,4156.7,3.9491]
[1758652239913,0.5336,4156.8,4156.7,3.9491]
[1758652240119,0.7492,4156.8,4156.7,3.9491]
[1758652241121,0.4397,4156.4,4156.3,0.5268]
[1758652241310,0.7492,4156.4,4156.3,0.7413]
[1758652241629,0.7492,4156.3,4156.2,3.2078]
[1758652241918,0.7492,4156.3,4156.2,3.4309]
[1758652242112,0.5336,4156.8,4156.7,0.7413]
[1758652242317,0.9962,4156.8,4156.7,0.7413]
[1758652242518,0.7492,4156.8,4156.7,0.7413]
[1758652242719,0.9962,4156.8,4156.7,0.7413]
[1758652243616,0.7492,4156.8,4156.7,0.7413]
[1758652243819,0.4711,4156.8,4156.7,0.7413]
[1758652244326,0.3095,4156.7,4156.6,0.2231]
[1758652244516,0.7492,4156.7,4156.3,0.3037]
[1758652244716,0.7492,4156.4,4156.3,0.5268]
[1758652244915,0.7492,4156.4,4156.3,0.2231]
[1758652245511,0.7492,4156.4,4156.3,0.7413]
[1758652246224,0.5336,4156.4,4156.3,0.7413]
[1758652246413,0.3095,4156.8,4156.3,0.2145]
[1758652246619,0.7492,4156.8,4156.7,0.7413]
[1758652246820,0.9962,4156.8,4156.7,0.7413]
[1758652247522,0.9962,4156.8,4156.7,0.2231]
[1758652247822,0.9962,4156.8,4156.3,0.2231]
[1758652247823,0.7492,4156.4,4156.3,0.2231]
[1758652248019,0.7492,4156.4,4156.2,3.2078]
[1758652248020,1.18209,4156.4,4156.2,3.2078]
[1758652248220,1.18209,4156.3,4155.7,3.2078]
[1758652248528,0.7492,4156.3,4156.2,0.7413]
[1758652249117,0.7492,4156.3,4156.2,0.4376]
[1758652249320,0.5336,4156.2,4156.1,0.2145]
[1758652249524,0.5336,4156.2,4156.1,0.7413]
[1758652249721,0.7492,4156.2,4156.1,0.7413]
[1758652250119,1.1821,4156.2,4156.1,0.4376]
[1758652250321,0.7492,4156.2,4156.1,0.7413]
[1758652250622,0.2241,4156.2,4156.1,0.7413]
[1758652250818,0.2241,4156.2,4156.1,1.17421]
[1758652251125,0.209,4156.4,4156.2,0.4329]
[1758652251320,0.247,4156.5,4156.4,0.87048]
[1758652251526,0.4711,4156.5,4156.4,1.17418]
[1758652251722,0.2241,4156.5,4156.4,1.17418]
[1758652252027,0.2241,4156.5,4156.4,0.7413]
[1758652252329,0.5336,4156.9,4156.8,0.5182]
[1758652252529,0.2241,4156.9,4156.8,0.7413]
[1758652252824,0.7492,4156.9,4156.8,0.7413]
[1758652253226,0.7492,4156.9,4156.8,1.17414]
[1758652253417,1.16409,4157.3,4157.2,0.5575]
[1758652253615,1.41109,4157.3,4157.2,0.2214]
[1758652254124,1.41109,4157.3,4156.9,0.76892]
[1758652254125,0.43282,4157.0,4156.9,0.3361]
[1758652254321,1.16412,4157.0,4156.9,0.7653]
[1758652254628,0.7313,4157.0,4156.9,0.7653]
[1758652255026,1.16412,4157.0,4156.9,0.7653]
[1758652255526,0.89601,4157.1,4157.0,0.6712]
[1758652255723,0.7313,4156.6,4156.5,0.7653]
[1758652255915,3.2078,4157.2,4156.6,0.3361]
[1758652256122,0.89601,4157.1,4157.0,0.7653]
[1758652256324,0.2162,4157.1,4157.0,1.32542]
[1758652256621,3.2078,4157.2,4157.1,1.19811]
[1758652257626,3.424,4157.7,4157.6,1.19805]
[1758652257925,3.2078,4157.7,4157.6,1.19805]
[1758652258125,0.247,4158.0,4157.9,0.43272]
[1758652258421,0.2162,4158.0,4157.9,0.86192]
[1758652258622,0.7313,4158.0,4157.9,0.4292]
[1758652258928,0.7313,4158.0,4157.9,0.7653]
[1758652259330,0.2162,4158.0,4157.9,0.7653]
[1758652260727,0.4201,4158.0,4157.9,0.7653]
[1758652260930,0.4201,4158.0,4157.4,3.2078]
[1758652260931,0.865,4157.5,4157.4,3.2078]
[1758652261121,0.865,4157.5,4157.4,3.4292]
[1758652261427,0.7313,4157.5,4157.4,3.9731]
[1758652261623,0.7313,4157.5,4157.4,3.637]
[1758652261933,0.865,4157.5,4157.4,0.2214]
[1758652262324,0.2162,4157.5,4157.4,0.7653]
[1758652262532,0.4632,4157.5,4157.4,0.7653]
[1758652262831,0.7313,4157.9,4157.8,1.19803]
[1758652263034,0.9783,4157.9,4157.8,1.19803]
[1758652263235,0.9783,4157.9,4157.4,0.3361]
[1758652263429,0.9783,4157.9,4157.4,0.99027]
[1758652263430,0.7313,4157.5,4157.4,0.99027]
[1758652263729,0.7313,4157.5,4157.4,1.19807]
[1758652264629,0.7313,4157.5,4157.4,0.7653]
[1758652264833,0.7313,4157.1,4157.0,0.5575]
[1758652265035,0.7313,4157.1,4157.0,0.2214]
[1758652265236,0.865,4157.0,4156.9,3.2078]
[1758652265527,0.7313,4156.7,4156.6,0.2214]
[1758652265729,0.7313,4156.7,4155.5,1.20972]
[1758652265730,0.7313,4156.3,4156.2,0.5575]
[1758652265935,1.20727,4156.6,4156.5,0.5575]
[1758652266139,1.41117,4156.6,4156.5,0.5575]
[1758652266630,0.5274,4156.1,4156.0,0.8926]
[1758652267330,0.7313,4156.1,4155.6,3.5439]
[1758652267522,0.247,4156.2,4155.6,3.5439]
[1758652267523,0.7313,4155.7,4155.6,0.2214]
[1758652267930,0.7313,4155.7,4155.6,0.5575]
[1758652269432,0.3112,4155.6,4154.8,3.2078]
[1758652269735,0.7313,4155.3,4155.2,0.7653]
[1758652270136,0.7313,4155.3,4155.2,0.4292]
[1758652270536,0.5274,4155.3,4155.2,0.7653]
[1758652270836,0.3112,4156.1,4155.7,0.4292]
[1758652271026,0.5602,4156.1,4156.0,0.7653]
[1758652271227,0.9803,4156.1,4156.0,0.4292]
[1758652271423,0.9803,4156.1,4156.0,0.2214]
[1758652272437,0.96625,4155.8,4155.7,0.2124]
[1758652272639,1.17295,4155.8,4155.7,0.2124]
[1758652272937,1.17295,4155.8,4155.7,0.4334]
[1758652272938,0.74,4155.8,4155.7,0.4334]
[1758652273238,0.74,4155.8,4155.4,0.2124]
[1758652273239,0.8648,4155.5,4155.4,0.2124]
[1758652273632,0.2116,4155.2,4155.1,0.43301]
[1758652273836,3.2078,4155.8,4155.4,0.43299]
[1758652274139,0.5333,4155.7,4155.6,0.7488]
[1758652275138,0.74,4155.7,4155.6,0.2124]
[1758652275336,0.74,4155.0,4154.9,0.2124]
[1758652275537,0.3217,4154.9,4154.7,0.43306]
[1758652275844,0.74,4154.8,4154.7,0.2124]
[1758652276135,0.75476,4154.7,4154.4,3.2078]
[1758652276333,0.2116,4154.5,4154.4,3.4202]
[1758652276641,0.5333,4154.5,4154.4,3.9566]
[1758652276940,0.74,4154.5,4154.4,3.6412]
[1758652277628,0.8648,4154.5,4154.4,3.6412]
[1758652277834,0.8648,4154.5,4154.4,3.2078]
[1758652278235,0.8648,4154.5,4154.4,3.4202]
[1758652278538,0.74,4154.5,4154.4,3.9566]
[1758652279051,0.5333,4154.9,4154.8,0.5364]
[1758652279245,0.5333,4154.9,4154.8,0.7488]
[1758652279742,0.5333,4154.9,4154.8,0.2124]
[1758652279743,0.74,4154.9,4154.8,0.2124]
[1758652281530,0.74,4154.9,4154.8,0.7488]
[1758652281737,0.989,4154.9,4154.8,0.7488]
[1758652282031,3.2078,4155.3,4155.1,0.43302]
[1758652282232,3.4194,4155.3,4155.2,0.7488]
[1758652282433,0.2116,4155.7,4155.6,0.4334]
[1758652282632,3.2078,4155.9,4155.8,0.86635]
[1758652282836,3.4194,4155.9,4155.8,1.18175]
[1758652283031,3.9478,4155.9,4155.8,0.86635]
[1758652283247,3.2078,4155.9,4155.8,1.19165]
[1758652283438,0.249,4156.0,4155.9,1.18834]
[1758652283839,0.8053,4156.0,4155.8,0.43295]
[1758652284145,0.8053,4156.0,4155.9,0.2094]
[1758652284647,1.1323,4156.0,4155.9,0.2094]
[1758652284946,0.5448,4156.0,4155.9,0.7554]
[1758652285141,0.249,4156.2,4156.1,0.43291]
[1758652285343,0.327,4156.3,4156.0,0.3253]
[1758652285344,3.2078,4156.4,4156.3,1.1883]
[1758652285544,3.2078,4157.1,4157.0,0.43282]
[1758652285751,0.56483,4157.0,4156.7,0.43285]
[1758652285939,0.327,4156.9,4156.8,0.43284]
[1758652286441,0.327,4156.9,4156.8,0.75814]
[1758652286640,0.327,4156.9,4156.8,0.3253]
[1758652287638,0.576,4157.1,4156.5,0.3253]
[1758652287839,1.00882,4157.1,4156.5,0.4291]
[1758652288039,0.132,4157.0,4156.6,0.3253]
[1758652288346,0.327,4156.9,4156.6,0.3253]
[1758652288549,0.327,4156.9,4156.8,0.43284]
[1758652288943,0.5448,4156.9,4156.8,1.18824]
[1758652289243,0.5448,4157.1,4157.0,1.18822]
[1758652289442,0.5448,4157.4,4157.3,0.7554]
[1758652289749,0.5448,4157.4,4157.3,1.18819]
[1758652290253,0.2178,4157.8,4157.3,0.546]
[1758652290540,0.2178,4158.0,4157.6,1.08191]
[1758652290736,3.6746,4158.2,4158.1,0.2094]
[1758652290940,3.8811,4158.2,4158.0,0.43272]
[1758652291244,0.7513,4158.1,4158.0,0.43272]
[1758652291444,0.4243,4158.1,4157.6,0.3253]
[1758652291646,0.7513,4158.0,4157.9,0.64213]
[1758652291847,0.8833,4158.0,4157.9,0.64213]
[1758652293552,0.5448,4158.0,4157.9,1.18813]
[1758652293742,0.8833,4158.0,4157.9,0.4301]
[1758652293943,0.5563,4158.0,4157.8,0.43273]
[1758652294248,0.7513,4157.9,4157.8,0.64213]
[1758652295453,0.7513,4157.9,4157.8,0.86283]
[1758652295650,0.2178,4157.9,4157.8,0.86283]
[1758652295849,0.5448,4157.9,4157.8,1.18814]
[1758652296050,0.7513,4157.9,4157.8,0.43274]
[1758652296550,0.7513,4157.9,4157.8,1.18814]
[1758652296742,0.7513,4157.9,4157.8,0.86284]
[1758652297443,0.7513,4157.9,4157.8,1.18814]
[1758652297841,0.327,4157.8,4157.2,3.2078]
[1758652298046,1.1841,4157.3,4157.2,3.64061]
[1758652298244,0.7513,4157.3,4157.2,3.85001]
[1758652299057,0.7513,4157.3,4157.2,4.07071]
[1758652299256,0.5448,4157.5,4157.4,1.18818]
[1758652299553,3.2078,4158.4,4158.0,1.4071]
[1758652299858,3.4256,4158.4,4158.3,1.18809]
[1758652300053,3.7526,4158.4,4158.3,1.18809]
[1758652300857,0.7513,4158.2,4158.1,0.6421]
[1758652301160,3.2078,4158.4,4158.3,1.18809]
[1758652302058,3.4256,4158.4,4158.3,1.18809]
[1758652302253,3.7526,4158.4,4158.3,1.18809]
[1758652302452,4.39178,4158.4,4158.2,0.43269]
[1758652302650,3.6321,4158.4,4158.3,0.2094]
[1758652302959,3.6321,4158.4,4158.3,0.64209]
[1758652303267,3.9591,4158.4,4158.3,0.64209]
[1758652303653,3.9591,4158.4,4158.3,1.18809]
[1758652304257,0.5448,4158.4,4158.3,1.18809]
[1758652304964,0.7513,4158.4,4158.3,0.43269]
[1758652305163,0.7513,4158.4,4158.3,0.64209]
[1758652305767,0.7513,4158.4,4158.3,1.18809]
[1758652306071,0.5448,4158.4,4158.3,1.18809]
[1758652306462,0.7513,4158.4,4158.3,0.86279]
[1758652308274,0.7513,4158.6,4158.5,1.18807]
[1758652308574,4.0911,4159.0,4158.9,0.64203]
[1758652308764,0.43263,4158.9,4158.7,0.43264]
[1758652308971,0.7513,4158.8,4158.7,0.64204]
[1758652309179,0.7513,4158.8,4158.7,0.86274]
[1758652309572,0.43265,4158.7,4158.5,0.43266]
[1758652309781,0.7513,4158.6,4158.5,0.43266]
[1758652310079,0.7513,4158.6,4158.5,0.64206]
[1758652310979,0.7513,4158.6,4158.5,1.18806]
[1758652311674,3.2078,4160.5,4158.5,5.5536]
[1758652311881,0.30529957,4160.4,4160.3,0.75778]
[1758652312070,3.2078,4161.5,4161.4,0.3253]
[1758652312379,3.2078,4162.1,4162.0,0.3253]
[1758652312578,1.2124,4163.5,4162.0,0.3253]
[1758652312579,3.2078,4162.6,4162.5,0.3253]
[1758652312779,3.2078,4163.4,4162.8,0.75752]
[1758652313074,0.132,4164.0,4163.1,0.3253]
[1758652313278,0.4321,4164.0,4163.3,0.43217]
[1758652313482,0.4321,4164.0,4163.4,0.43215]
[1758652313483,3.2078,4163.8,4163.4,0.43215]
[1758652313972,3.2078,4163.8,4163.3,0.3136]
[1758652313973,0.3198,4163.7,4163.3,0.3136]
[1758652314378,0.43215,4163.6,4163.3,0.3136]
[1758652314578,0.3198,4163.6,4163.4,0.3136]
[1758652314975,0.43214,4163.7,4163.4,0.3136]
[1758652315273,0.75195,4163.6,4163.0,0.1235]
[1758652315479,0.75199,4163.1,4162.5,0.86935]
[1758652315669,0.3198,4162.7,4162.5,0.3136]
[1758652316775,0.3198,4162.7,4162.5,0.74585]
[1758652316977,3.2078,4162.8,4162.7,0.74583]
[1758652317177,0.3198,4163.0,4162.7,0.3136]
[1758652317377,0.251,4163.1,4162.7,0.3136]
[1758652317678,0.251,4163.1,4162.3,3.4388]
[1758652317679,0.43223,4162.8,4162.4,0.3136]
[1758652317869,0.4323,4162.2,4161.8,3.2078]
[1758652318073,0.3198,4161.9,4161.5,0.3136]
[1758652318372,3.2078,4162.3,4161.2,3.2078]
[1758652318373,0.3198,4161.7,4161.3,0.43238]
[1758652318573,0.3198,4161.7,4161.4,0.3136]
[1758652318774,0.3198,4161.7,4161.4,0.43237]
[1758652319075,0.4323,4162.1,4161.8,0.3136]
[1758652319268,0.3198,4161.9,4161.6,0.3136]
[1758652319473,0.3198,4161.7,4161.2,3.2078]
[1758652319674,0.3198,4161.7,4161.5,0.74596]
[1758652319881,0.3198,4161.9,4161.6,0.3136]
[1758652320076,0.3198,4162.2,4161.2,3.2078]
[1758652320281,0.4323,4162.1,4161.3,0.3136]
[1758652320582,0.43232,4161.9,4161.5,0.43235]
[1758652320774,0.3198,4161.8,4161.6,0.3136]
[1758652320975,0.3198,4161.8,4161.7,0.43234]
[1758652321170,0.3198,4161.8,4161.6,0.3136]
[1758652321368,0.3198,4161.6,4161.3,0.3136]
[1758652321569,0.3198,4161.6,4161.2,0.43238]
[1758652321570,0.43237,4161.5,4161.0,0.56401]
[1758652321884,0.43236,4161.6,4161.2,0.43239]
[1758652322084,0.3198,4161.3,4161.2,0.3136]
[1758652322778,0.3198,4161.2,4161.0,0.3136]
[1758652322976,3.2078,4161.3,4161.0,0.3136]
[1758652323177,0.3198,4161.2,4160.8,0.3136]
[1758652323384,0.3198,4161.2,4161.0,0.74601]
[1758652323582,0.3198,4161.2,4161.0,0.43241]
[1758652323877,0.3198,4161.2,4161.1,0.3136]
[1758652324275,3.2078,4161.3,4161.2,0.74599]
[1758652324882,1.081,4161.2,4160.5,0.1316]
[1758652325071,0.43243,4160.9,4160.5,0.74606]
[1758652325376,0.3198,4160.7,4160.6,0.3136]
[1758652325583,0.3198,4160.7,4160.0,0.3826]
[1758652325584,0.3198,4160.2,4160.1,0.3136]
[1758652325778,0.75231,4160.1,4159.9,0.3136]
[1758652325974,0.75231,4160.1,4159.8,0.43253]
[1758652326173,0.75231,4160.1,4160.0,0.3136]
[1758652326373,3.2078,4160.3,4160.1,0.43251]
[1758652326374,3.5276,4160.3,4160.1,0.43251]
[1758652326577,3.5276,4160.3,4160.2,0.3136]
[1758652326780,3.2078,4160.8,4160.6,0.43245]
[1758652326985,3.2078,4160.8,4160.7,0.3136]
[1758652329179,0.43246,4160.6,4160.3,0.74609]
[1758652329382,3.4588,4160.8,4160.2,0.43249]
[1758652329581,0.43248,4160.4,4160.2,0.43249]
[1758652329783,0.3198,4160.2,4160.1,0.3136]
[1758652330083,0.4325,4160.2,4160.0,0.43251]
[1758652330273,0.3198,4159.9,4159.8,0.43254]
[1758652330472,0.75234,4159.8,4159.7,0.43255]
[1758652330879,0.1305,4160.0,4159.2,3.5214]
[1758652331085,0.3198,4159.6,4159.5,0.43256]
[1758652331275,0.3071,4160.0,4159.5,0.3165]
[1758652331477,3.7659,4160.2,4160.0,0.74901]
[1758652331682,3.7659,4160.2,4160.1,0.3165]
[1758652331888,0.43253,4160.0,4159.9,0.43253]
[1758652332186,0.73963,4160.0,4159.9,0.43253]
[1758652333084,0.3071,4160.0,4159.9,0.43253]
[1758652333476,3.2078,4160.2,4160.1,0.74901]
[1758652334683,3.2078,4160.2,4160.1,5.74901]
[1758652334882,3.2078,4160.8,4160.7,0.74895]
[1758652335588,0.251,4161.4,4161.3,0.43238]
[1758652335783,0.5581,4161.4,4161.3,0.74888]
[1758652336186,3.5149,4161.7,4161.6,0.43235]
[1758652336384,3.7659,4161.7,4161.6,0.74885]
[1758652337083,3.7659,4161.7,4161.6,0.43235]
[1758652337679,3.2078,4161.7,4161.6,0.74885]
[1758652337893,3.4588,4161.7,4161.6,0.74885]
[1758652339981,3.2078,4161.7,4161.6,0.74885]
[1758652340387,3.4588,4162.3,4162.2,0.43229]
[1758652340588,3.5149,4162.3,4162.2,0.43229]
[1758652340890,3.7659,4162.3,4162.2,0.43229]
[1758652341687,0.251,4162.3,4162.2,0.74879]
[1758652342387,0.5581,4162.3,4162.2,0.74879]
[1758652342889,0.251,4162.3,4162.2,0.74879]
[1758652343399,0.5714,4162.3,4162.2,0.74879]
[1758652344090,0.5714,4162.3,4162.2,0.43229]
[1758652344292,1.00368,4162.3,4162.2,0.43229]
[1758652344491,0.5714,4162.3,4162.2,0.43229]
[1758652345487,0.43234,4161.8,4161.7,0.43234]
[1758652345687,0.75274,4161.8,4161.7,0.43234]
[1758652346083,0.3204,4161.8,4161.7,0.43234]
[1758652346295,0.3204,4162.2,4162.1,0.7536]
[1758652346499,0.3204,4162.2,4162.1,0.4323]
[1758652347194,3.2078,4162.3,4161.6,1.08089]
[1758652347403,3.5282,4162.3,4162.2,0.43229]
[1758652351301,3.9561,4162.3,4162.2,0.43229]
[1758652351799,3.2078,4162.3,4161.5,4.4228]
[1758652352099,0.7483,4161.6,4161.5,0.97697]
[1758652353003,0.2143,4162.0,4161.9,0.4305]
[1758652353301,0.5347,4162.2,4162.1,1.1841]
[1758652354195,0.7483,4162.2,4162.1,1.1841]
[1758652354593,3.2078,4162.8,4162.6,1.18405]
[1758652354594,0.7483,4162.7,4162.6,1.18405]
[1758652354800,0.4279,4162.7,4162.6,1.18405]
[1758652357197,0.7483,4162.7,4162.6,1.18405]
[1758652357899,0.4279,4162.7,4162.6,1.18405]
[1758652358603,0.4322,4163.2,4162.6,1.18405]
[1758652358903,40.8,4164.3,4163.8,1.18393]
[1758652358904,3.4221,4163.9,4163.8,1.18393]
[1758652359197,3.9561,4163.9,4163.8,0.2233]
[1758652359499,0.3204,4163.8,4163.7,0.43214]
[1758652359801,0.7483,4163.8,4163.7,0.43214]
[1758652360002,0.7483,4163.8,4163.7,0.97674]
[1758652360202,0.7483,4163.8,4163.7,0.65544]
[1758652360596,0.7483,4163.8,4163.7,0.97674]
[1758652360794,0.7483,4163.6,4163.5,0.65545]
[1758652361104,0.4279,4163.3,4163.2,0.3213]
[1758652361402,0.4279,4163.3,4163.2,0.97678]
[1758652361403,0.7483,4163.3,4163.2,0.97678]